bitfinex/quotes_SOLUSD_20250814
["timestamp","ask_amount","ask_price","bid_price","bid_amount"]
[1755184057660,17.98583598,196.3,196.25,5.09528958]
[1755184057843,26.66,196.34,196.26,17.98583598]
[1755184058054,17.98583598,196.32,196.26,17.98583598]
[1755184058384,0.66,196.34,196.25,5.09528958]
[1755184058552,17.98583598,196.34,196.28,17.98583598]
[1755184058752,17.98583598,196.36,196.3,17.98583598]
[1755184058959,17.98583598,196.34,196.28,17.98583598]
[1755184059156,26.0,196.34,196.3,17.98583598]
[1755184059360,17.98583598,196.37,196.31,17.98583598]
[1755184060057,17.98583598,196.39,196.33,17.98583598]
[1755184060370,17.98583598,196.39,196.31,17.98583598]
[1755184060371,0.66,196.39,196.31,17.98583598]
[1755184060585,17.98583598,196.4,196.3,0.65]
[1755184060756,0.66,196.42,196.34,17.98583598]
[1755184060956,0.66,196.42,196.3,15.75621557]
[1755184060957,17.98583598,196.4,196.31,15.10621557]
[1755184061256,17.98583598,196.39,196.3,0.65]
[1755184061453,17.98583598,196.34,196.28,5.09476258]
[1755184061650,17.98583598,196.34,196.27,5.09494851]
[1755184061855,17.98583598,196.33,196.27,17.98583598]
[1755184062072,17.98583598,196.33,196.27,23.08075811]
[1755184062264,0.66,196.36,196.28,17.98583598]
[1755184062463,17.98583598,196.35,196.27,5.09492213]
[1755184062658,17.81990133,196.41,196.29,17.98583598]
[1755184062868,43.98583598,196.37,196.31,17.98583598]
[1755184063346,43.98583598,196.37,196.3,23.08007948]
[1755184063547,26.0,196.37,196.3,5.0942435]
[1755184063981,0.66,196.45,196.36,17.98583598]
[1755184064187,18.64583598,196.45,196.39,17.98583598]
[1755184064480,0.06,196.48,196.41,17.98583598]
[1755184064652,18.04583598,196.48,196.42,17.98583598]
[1755184064850,0.06,196.48,196.42,17.98583598]
[1755184065053,0.06,196.48,196.43,17.98583598]
[1755184065772,17.98583598,196.47,196.4,5.09164969]
[1755184065976,0.06,196.48,196.4,5.09164969]
[1755184065977,0.06,196.48,196.42,17.98583598]
[1755184066151,18.04583598,196.48,196.42,18.63583598]
[1755184066349,18.04583598,196.46,196.37,5.09242756]
[1755184066557,0.06,196.46,196.38,17.98583598]
[1755184066859,17.98583598,196.45,196.38,17.98583598]
[1755184067064,17.98583598,196.45,196.39,17.98583598]
[1755184067257,0.06,196.46,196.4,17.98583598]
[1755184067574,17.98583598,196.45,196.38,0.65]
[1755184067788,17.98583598,196.45,196.39,17.98583598]
[1755184068159,17.98583598,196.45,196.34,81.64621557]
[1755184068160,17.98583598,196.43,196.35,5.09294626]
[1755184068359,26.0,196.45,196.39,17.98583598]
[1755184068569,43.98583598,196.45,196.4,0.65]
[1755184068778,26.0,196.45,196.4,18.63583598]
[1755184068961,26.0,196.45,196.41,0.65]
[1755184069161,26.0,196.44,196.38,5.74216824]
[1755184069486,26.0,196.44,196.38,5.09216824]
[1755184069665,17.98583598,196.43,196.35,0.65]
[1755184069855,17.98583598,196.41,196.35,0.65]
[1755184070061,17.98583598,196.4,196.34,40.54]
[1755184070281,5.09190895,196.39,196.34,58.52583598]
[1755184070467,5.75190895,196.39,196.34,40.54]
[1755184070787,26.0,196.41,196.34,17.98583598]
[1755184070959,43.98583598,196.41,196.35,0.65]
[1755184071284,26.0,196.41,196.34,17.98583598]
[1755184071580,26.0,196.41,196.33,5.12344178]
[1755184071581,17.98583598,196.37,196.33,0.03]
[1755184072066,3.37011562,196.36,196.33,0.03]
[1755184072277,26.0,196.38,196.33,23.75909381]
[1755184072463,29.3771155,196.37,196.33,0.03]
[1755184072665,26.0,196.37,196.33,23.10924867]
[1755184072957,26.0,196.38,196.35,17.98583598]
[1755184073291,17.98583598,196.41,196.35,17.98583598]
[1755184073476,40.4,196.44,196.35,17.98583598]
[1755184073477,3.38235487,196.4,196.38,17.98583598]
[1755184073782,3.38235487,196.43,196.39,18.63583598]
[1755184073989,3.38235487,196.42,196.36,0.65]
[1755184074191,3.38235487,196.41,196.37,17.98583598]
[1755184074367,3.38235487,196.4,196.37,5.74242756]
[1755184074684,3.38235487,196.43,196.37,23.72826354]
[1755184074862,3.38235487,196.42,196.37,23.72826354]
[1755184075063,3.38235487,196.41,196.38,0.65]
[1755184075262,3.38235487,196.44,196.39,0.65]
[1755184075560,3.38235487,196.44,196.4,0.65]
[1755184075769,3.38235487,196.43,196.41,17.98583598]
[1755184076000,3.38235487,196.44,196.41,17.98583598]
[1755184076154,3.38235487,196.44,196.35,26.0]
[1755184076155,26.0,196.41,196.3,0.65]
[1755184076358,17.98583598,196.34,196.27,0.65]
[1755184076585,26.0,196.38,196.3,0.65]
[1755184076879,21.37127287,196.37,196.3,18.63583598]
[1755184077086,3.38543689,196.36,196.3,0.65]
[1755184077294,3.38543689,196.35,196.32,17.98583598]
[1755184077589,3.38543689,196.37,196.34,18.63583598]
[1755184077800,3.38620838,196.41,196.37,15.10621557]
[1755184078087,3.38620838,196.41,196.33,40.45]
[1755184078088,3.38620838,196.4,196.36,17.98583598]
[1755184078272,3.38620838,196.39,196.33,40.45]
[1755184078470,3.38620838,196.38,196.33,18.01583598]
[1755184078667,3.38620838,196.37,196.33,0.03]
[1755184078988,3.38620838,196.36,196.33,0.03]
[1755184079298,21.37204436,196.35,196.33,0.03]
[1755184079463,3.38620838,196.34,196.33,0.03]
[1755184080515,27.12525002,196.34,196.33,0.03]
[1755184080658,18.64583598,196.34,196.33,0.03]
[1755184080866,4.04781773,196.34,196.33,0.03]
[1755184081099,27.12685937,196.34,196.33,0.03]
[1755184081793,9.14102339,196.34,196.33,0.03]
[1755184081979,31.36163153,196.34,196.33,0.03]
[1755184082598,26.0,196.32,196.31,0.03]
[1755184082804,30.08781773,196.32,196.31,0.03]
[1755184083162,47.37365371,196.32,196.31,0.03]
[1755184083561,26.0,196.28,196.17,0.7]
[1755184083804,26.0,196.25,196.14,5.09835185]
[1755184083966,17.98583598,196.19,196.12,5.82866088]
[1755184084272,17.98583598,196.19,196.13,17.98583598]
[1755184084458,17.98583598,196.21,196.14,17.98583598]
[1755184084662,26.0,196.23,196.18,17.98583598]
[1755184084957,26.0,196.21,196.18,0.7]
[1755184085172,17.98583598,196.25,196.19,18.68583598]
[1755184085696,17.98583598,196.23,196.18,17.98583598]
[1755184086196,21.38106212,196.22,196.15,5.79807929]
[1755184086498,17.98583598,196.22,196.16,17.98583598]
[1755184086674,17.98583598,196.2,196.15,23.78391527]
[1755184087011,31.09528315,196.26,196.16,18.68583598]
[1755184087320,31.09528315,196.26,196.18,17.98583598]
[1755184087321,43.98583598,196.24,196.18,17.98583598]
[1755184087824,3.39449475,196.23,196.14,17.98583598]
[1755184088128,17.98583598,196.23,196.18,17.98583598]
[1755184088318,43.98583598,196.24,196.18,18.68583598]
[1755184088524,43.98583598,196.24,196.19,17.98583598]
[1755184088840,26.0,196.24,196.19,17.98583598]
[1755184089026,0.7,196.32,196.2,0.7]
[1755184089335,26.0,196.26,196.23,17.98583598]
[1755184089497,26.0,196.26,196.2,0.7]
[1755184089498,43.98583598,196.26,196.2,18.68583598]
[1755184089698,17.98583598,196.24,196.19,17.98583598]
[1755184089893,17.98583598,196.25,196.2,0.7]
[1755184090094,26.0,196.29,196.22,17.98583598]
[1755184090317,0.7,196.31,196.24,17.98583598]
[1755184090522,17.98583598,196.3,196.25,17.98583598]
[1755184090709,43.61872872,196.34,196.19,17.83984059]
[1755184090710,17.98583598,196.32,196.26,18.68583598]
[1755184091051,58.24583598,196.35,196.29,17.98583598]
[1755184091243,17.98583598,196.33,196.27,18.68583598]
[1755184091429,17.98583598,196.32,196.27,0.7]
[1755184091729,12.73036846,196.39,196.26,5.09505563]
[1755184091730,0.7,196.41,196.31,17.98583598]
[1755184091897,17.98583598,196.43,196.37,17.98583598]
[1755184092091,17.98583598,196.42,196.36,17.98583598]
[1755184092295,17.98583598,196.42,196.32,0.7]
[1755184092296,17.98583598,196.43,196.35,0.7]
[1755184092503,0.06,196.41,196.35,18.68583598]
[1755184093002,0.06,196.41,196.36,17.98583598]
[1755184093212,0.06,196.41,196.38,17.98583598]
[1755184093500,0.06,196.41,196.37,23.07826354]
[1755184093996,0.06,196.41,196.36,17.98583598]
[1755184094197,17.98583598,196.38,196.32,5.09372453]
[1755184094396,0.7,196.4,196.32,17.98583598]
[1755184094642,17.98583598,196.37,196.31,0.7]
[1755184094848,17.98583598,196.37,196.31,23.77981234]
[1755184095021,0.06,196.41,196.33,17.98583598]
[1755184095222,0.06,196.41,196.38,17.98583598]
[1755184095435,0.06,196.41,196.39,18.68583598]
[1755184095623,0.06,196.41,196.36,17.82440415]
[1755184095624,0.06,196.41,196.4,17.98583598]
[1755184095825,0.06,196.41,196.36,17.82440415]
[1755184096017,0.06,196.41,196.4,17.98583598]
[1755184096212,0.06,196.41,196.4,18.68583598]
[1755184097357,0.06,196.41,196.4,5.79164969]
[1755184097652,0.06,196.41,196.36,0.7]
[1755184097950,0.06,196.41,196.37,0.7]
[1755184098250,17.98583598,196.38,196.31,5.793984]
[1755184098576,0.7,196.37,196.3,0.03]
[1755184098758,26.7,196.37,196.3,5.12415954]
[1755184098907,17.98583598,196.33,196.3,0.03]
[1755184099319,17.98583598,196.34,196.3,0.03]
[1755184099550,17.98583598,196.32,196.3,0.03]
[1755184100618,18.68583598,196.31,196.3,0.03]
[1755184101359,38.88603555,196.31,196.24,0.03]
[1755184101568,17.98583598,196.16,196.09,0.9]
[1755184101861,15.10621557,196.27,196.09,5.99969575]
[1755184101862,26.7,196.19,196.09,5.99969575]
[1755184102017,17.98583598,196.14,196.09,5.99969575]
[1755184102220,26.7,196.19,196.09,5.99969575]
[1755184102434,26.0,196.15,196.12,5.12890496]
[1755184102747,26.0,196.15,196.13,5.12865843]
[1755184103067,17.98583598,196.16,196.13,0.03]
[1755184103266,26.0,196.19,196.14,17.98583598]
[1755184103437,26.0,196.19,196.15,0.7]
[1755184103642,17.98583598,196.2,196.14,17.98583598]
[1755184103848,43.98583598,196.21,196.15,17.98583598]
[1755184104138,17.98583598,196.2,196.14,17.98583598]
[1755184104546,17.98583598,196.25,196.19,17.98583598]
[1755184104863,17.98583598,196.28,196.22,17.98583598]
[1755184105070,46.07364957,196.33,196.24,17.98583598]
[1755184105377,26.0,196.27,196.23,18.68583598]
[1755184105540,17.98583598,196.32,196.26,17.98583598]
[1755184105866,4.24331332,196.39,196.26,17.98583598]
[1755184105867,26.0,196.28,196.26,17.98583598]
[1755184106042,40.26,196.36,196.27,18.68583598]
[1755184106242,17.98583598,196.33,196.27,0.7]
[1755184106474,17.98583598,196.34,196.27,18.68583598]
[1755184106637,17.98583598,196.33,196.27,0.7]
[1755184106851,26.0,196.34,196.27,17.98583598]
[1755184107030,17.98583598,196.35,196.29,17.98583598]
[1755184107235,17.98583598,196.32,196.23,0.7]
[1755184107458,17.98583598,196.32,196.25,17.98583598]
[1755184107459,26.0,196.32,196.25,17.98583598]
[1755184107669,17.98583598,196.3,196.24,17.98583598]
[1755184107876,17.98583598,196.31,196.25,17.98583598]
[1755184108462,26.0,196.28,196.25,17.98583598]
[1755184108773,17.98583598,196.31,196.23,17.98583598]
[1755184108774,17.98583598,196.29,196.23,17.98583598]
[1755184108938,26.0,196.29,196.24,17.98583598]
[1755184109141,26.0,196.29,196.25,18.68583598]
[1755184109565,17.98583598,196.29,196.23,17.98583598]
[1755184109737,26.0,196.31,196.26,17.98583598]
[1755184109943,26.0,196.34,196.3,17.98583598]
[1755184110144,45.35186057,196.4,196.32,17.98583598]
[1755184110342,0.76,196.41,196.27,40.26]
[1755184110343,0.06,196.41,196.34,17.98583598]
[1755184110539,17.98583598,196.4,196.33,0.7]
[1755184110760,17.98583598,196.4,196.33,18.68583598]
[1755184110761,17.98583598,196.39,196.33,18.68583598]
[1755184110949,0.06,196.41,196.35,17.98583598]
[1755184111354,0.06,196.41,196.36,18.66583598]
[1755184111545,0.06,196.41,196.37,18.66583598]
[1755184111744,0.06,196.41,196.35,17.98583598]
[1755184112141,0.06,196.41,196.37,17.98583598]
[1755184112352,0.06,196.41,196.38,18.66583598]
[1755184112566,0.06,196.41,196.36,17.98583598]
[1755184112877,0.06,196.41,196.36,23.75847443]
[1755184113047,0.06,196.41,196.37,18.66583598]
[1755184113538,26.06,196.41,196.37,0.68]
[1755184113745,0.06,196.41,196.37,0.68]
[1755184113954,0.06,196.41,196.37,18.66583598]
[1755184114243,0.06,196.41,196.36,17.98583598]
[1755184114566,0.06,196.41,196.35,18.66583598]
[1755184114774,0.06,196.41,196.37,5.09229595]
[1755184114980,0.06,196.41,196.38,17.98583598]
[1755184115263,0.06,196.41,196.37,5.09229595]
[1755184115264,0.06,196.41,196.39,18.66583598]
[1755184115574,0.06,196.41,196.39,0.68]
[1755184115787,0.06,196.41,196.39,18.66583598]
[1755184116266,0.06,196.41,196.39,0.68]
[1755184116474,0.06,196.41,196.39,18.66583598]
[1755184116850,0.06,196.41,196.39,23.75752865]
[1755184117845,0.06,196.41,196.4,18.66583598]
[1755184118364,0.06,196.41,196.4,33.77205155]
[1755184118674,0.06,196.45,196.42,26.0]
[1755184118859,0.06,196.45,196.44,38.18266445]
[1755184119055,0.06,196.46,196.44,39.37172574]
[1755184119256,0.06,196.46,196.45,18.66583598]
[1755184119667,0.06,196.46,196.45,33.77205155]
[1755184120269,0.06,196.48,196.46,15.10621557]
[1755184120449,0.06,196.48,196.47,58.08583598]
[1755184120646,0.06,196.48,196.47,73.87205155]
[1755184120874,0.06,196.48,196.47,78.96188714]
[1755184121347,0.06,196.48,196.47,40.08]
[1755184121547,0.06,196.48,196.47,60.95605116]
[1755184121753,0.06,196.48,196.47,78.94188714]
[1755184122155,0.06,196.48,196.45,5.09010513]
[1755184122376,0.06,196.48,196.46,40.04]
[1755184122551,0.06,196.48,196.47,33.77205155]
[1755184122750,0.06,196.48,196.47,38.86188714]
[1755184123253,0.06,196.48,196.47,78.90188714]
[1755184123454,0.06,196.52,196.48,15.10621557]
[1755184123669,0.06,196.52,196.49,33.77205155]
[1755184124181,1e-08,196.5,196.49,34.2809833]
[1755184124652,1e-08,196.52,196.51,41.10621557]
[1755184124851,1e-08,196.52,196.51,39.36973105]
[1755184125080,1e-08,196.52,196.51,79.34973105]
[1755184125459,1e-08,196.52,196.51,109.94973105]
[1755184125676,0.67,196.67,196.55,41.10621557]
[1755184125978,26.0,196.65,196.63,17.98583598]
[1755184126168,18.65583598,196.71,196.64,57.92583598]
[1755184126367,0.67,196.71,196.65,17.98583598]
[1755184126674,5.75366482,196.71,196.64,57.92583598]
[1755184126860,17.98583598,196.7,196.64,57.92583598]
[1755184127364,5.75370351,196.71,196.64,39.94]
[1755184127770,0.67,196.71,196.65,17.98583598]
[1755184127954,17.98583598,196.69,196.62,17.98583598]
[1755184128157,26.0,196.7,196.58,0.68]
[1755184128158,17.98583598,196.7,196.65,17.98583598]
[1755184128356,17.98583598,196.69,196.63,39.96]
[1755184128596,17.98583598,196.68,196.62,17.98583598]
[1755184128777,17.98583598,196.68,196.64,39.94]
[1755184129061,4.98465317,196.73,196.62,17.98583598]
[1755184129062,0.67,196.75,196.66,17.98583598]
[1755184129260,5.19745388,196.79,196.67,15.10621557]
[1755184129464,17.98583598,196.75,196.69,17.98583598]
[1755184129663,17.98583598,196.71,196.68,40.1]
[1755184129871,0.67,196.74,196.68,40.1]
[1755184130075,17.98583598,196.72,196.68,40.1]
[1755184130279,0.06,196.72,196.68,40.1]
[1755184130480,0.67,196.71,196.6,15.25204]
[1755184130662,0.67,196.71,196.63,17.98583598]
[1755184130663,26.67,196.71,196.63,17.98583598]
[1755184130857,43.98583598,196.71,196.66,5.08491813]
[1755184131088,17.98583598,196.71,196.66,45.20491813]
[1755184131276,43.98583598,196.71,196.66,45.20491813]
[1755184131566,0.06,196.72,196.7,17.98583598]
[1755184131763,0.06,196.72,196.71,40.1]
[1755184132085,0.06,196.72,196.68,17.98583598]
[1755184132285,17.98583598,196.69,196.58,5.76697045]
[1755184132586,17.98583598,196.65,196.59,17.98583598]
[1755184132784,17.98583598,196.64,196.58,17.98583598]
[1755184133083,17.98583598,196.61,196.56,40.14]
[1755184133301,17.98583598,196.6,196.56,40.14]
[1755184133467,26.0,196.62,196.56,40.14]
[1755184133660,17.98583598,196.6,196.54,17.98583598]
[1755184133864,17.98583598,196.55,196.48,15.260575]
[1755184134064,17.98583598,196.49,196.47,0.03]
[1755184134568,17.98583598,196.48,196.47,0.03]
[1755184134966,18.65583598,196.48,196.47,0.03]
[1755184135170,0.67,196.51,196.47,0.03]
[1755184135585,26.0,196.5,196.47,0.03]
[1755184136295,17.98583598,196.53,196.47,18.01583598]
[1755184136464,43.98583598,196.53,196.47,18.01583598]
[1755184136987,26.0,196.53,196.5,5.08905852]
[1755184137201,18.65583598,196.57,196.51,17.98583598]
[1755184137505,17.98583598,196.56,196.5,23.0748945]
[1755184137665,0.67,196.57,196.52,17.98583598]
[1755184137988,0.67,196.59,196.52,17.98583598]
[1755184138161,0.67,196.59,196.51,18.01583598]
[1755184138359,26.67,196.59,196.52,17.98583598]
[1755184138565,5.08595259,196.62,196.51,0.03]
[1755184138566,17.98583598,196.61,196.56,17.98583598]
[1755184138979,26.0,196.61,196.57,5.08724627]
[1755184139185,17.98583598,196.62,196.57,5.08724627]
[1755184139370,0.67,196.63,196.57,5.08724627]
[1755184139573,17.98583598,196.61,196.57,5.08724627]
[1755184140297,17.98583598,196.58,196.54,5.08802279]
[1755184140463,18.68583598,196.58,196.53,40.08]
[1755184140796,26.0,196.61,196.54,0.71]
[1755184140996,17.98583598,196.6,196.54,17.98583598]
[1755184141173,26.0,196.61,196.55,17.98583598]
[1755184141174,43.98583598,196.61,196.55,17.98583598]
[1755184141371,0.7,196.62,196.55,17.98583598]
[1755184141573,5.22738787,196.66,196.56,17.98583598]
[1755184141770,17.98583598,196.65,196.59,17.98583598]
[1755184142067,5.92738787,196.66,196.62,17.98583598]
[1755184142068,0.06,196.66,196.62,17.98583598]
[1755184142271,0.06,196.66,196.64,17.98583598]
[1755184142514,17.98583598,196.65,196.58,40.22]
[1755184142800,17.98583598,196.59,196.54,40.2]
[1755184143091,17.98583598,196.62,196.55,5.79776392]
[1755184143294,17.98583598,196.61,196.55,23.7835999]
[1755184143482,17.98583598,196.58,196.54,40.2]
[1755184143687,0.7,196.62,196.54,40.2]
[1755184143995,17.98583598,196.58,196.54,40.2]
[1755184144288,17.98583598,196.57,196.54,40.2]
[1755184144588,0.7,196.57,196.51,0.03]
[1755184144800,17.98583598,196.53,196.51,0.03]
[1755184144968,23.07423318,196.53,196.51,0.03]
[1755184145173,17.98583598,196.52,196.51,0.03]
[1755184145469,17.98583598,196.53,196.51,0.03]
[1755184146288,5.08770936,196.56,196.51,0.03]
[1755184146470,17.98583598,196.59,196.53,17.98583598]
[1755184146671,17.98583598,196.59,196.52,0.71]
[1755184146898,17.98583598,196.57,196.51,18.01583598]
[1755184147069,17.98583598,196.59,196.52,23.07437658]
[1755184147585,17.98583598,196.6,196.54,17.98583598]
[1755184147788,0.7,196.62,196.56,17.98583598]
[1755184147789,18.68583598,196.62,196.56,17.98583598]
[1755184148001,17.98583598,196.61,196.55,17.98583598]
[1755184148299,17.98583598,196.6,196.54,17.98583598]
[1755184148603,17.98583598,196.59,196.53,17.98583598]
[1755184148801,12.76842127,196.72,196.56,17.98583598]
[1755184149005,0.06,196.72,196.65,17.98583598]
[1755184149206,1e-08,196.66,196.65,73.88205155]
[1755184149377,0.06,196.72,196.69,15.10621557]
[1755184149581,0.06,196.72,196.7,0.71]
[1755184149789,0.06,196.72,196.71,58.81583598]
[1755184150581,0.06,196.72,196.68,17.98583598]
[1755184150897,26.06,196.72,196.68,40.1]
[1755184151673,0.06,196.72,196.71,17.98583598]
[1755184152488,0.06,196.72,196.7,17.98583598]
[1755184152686,0.06,196.72,196.71,17.98583598]
[1755184153078,0.06,196.72,196.7,23.06970498]
[1755184153279,0.06,196.72,196.71,40.06]
[1755184153774,0.06,196.72,196.71,58.75583598]
[1755184153975,0.06,196.72,196.66,5.08491813]
[1755184154189,0.06,196.72,196.66,23.07075411]
[1755184154398,0.06,196.72,196.71,17.98583598]
[1755184154593,0.06,196.72,196.71,33.80205155]
[1755184154796,1e-08,196.72,196.71,33.80205155]
[1755184154999,0.06,196.78,196.76,5.0823338]
[1755184155204,0.06,196.78,196.77,58.02583598]
[1755184155393,0.06,196.78,196.75,23.06841474]
[1755184155592,0.06,196.78,196.71,26.0]
[1755184155593,18.04583598,196.78,196.71,26.0]
[1755184155795,3.37251421,196.77,196.72,58.00583598]
[1755184156108,21.35835019,196.77,196.72,40.02]
[1755184156303,18.68583598,196.77,196.72,40.02]
[1755184156479,17.98583598,196.75,196.69,5.79407813]
[1755184156678,18.68583598,196.76,196.7,57.98583598]
[1755184157074,0.7,196.76,196.71,17.98583598]
[1755184157412,0.7,196.76,196.7,45.08366611]
[1755184157413,0.7,196.75,196.64,5.08543531]
[1755184157577,17.98583598,196.69,196.65,39.98]
[1755184157775,17.98583598,196.68,196.65,39.98]
[1755184158009,0.7,196.68,196.65,39.98]
[1755184158188,17.98583598,196.67,196.65,39.98]
[1755184158500,17.98583598,196.67,196.62,40.12]
[1755184158798,26.0,196.73,196.59,26.0]
[1755184158799,17.98583598,196.65,196.59,17.98583598]
[1755184159004,17.98583598,196.65,196.61,40.2]
[1755184159790,0.7,196.67,196.61,40.2]
[1755184159989,17.98583598,196.63,196.61,40.2]
[1755184160194,18.68583598,196.62,196.54,17.98583598]
[1755184160384,18.68583598,196.62,196.52,0.74]
[1755184160385,17.98583598,196.58,196.52,40.17]
[1755184160893,3.38177355,196.57,196.52,58.15583598]
[1755184161089,5.08750508,196.56,196.52,0.03]
[1755184161281,43.98583598,196.53,196.52,0.03]
[1755184161478,48.06760953,196.53,196.52,0.03]
[1755184161683,52.2686588,196.53,196.51,0.03]
[1755184161915,48.06760953,196.52,196.51,0.03]
[1755184163092,35.17031415,196.52,196.51,0.03]
[1755184163414,68.2623657,196.52,196.51,0.03]
[1755184163719,72.46341497,196.52,196.46,0.03]
[1755184163925,26.30262813,196.51,196.46,0.03]
[1755184164304,26.0,196.48,196.46,0.03]
[1755184164619,103.3938251,196.48,196.46,0.03]
[1755184164927,33.09205155,196.47,196.46,0.03]
[1755184165103,37.1738251,196.47,196.46,0.03]
[1755184165302,3.38177355,196.47,196.46,0.03]
[1755184165493,43.98583598,196.47,196.46,0.03]
[1755184165692,47.36760953,196.47,196.46,0.03]
[1755184165894,3.38177355,196.47,196.46,0.03]
[1755184166091,0.7,196.54,196.46,0.03]
[1755184166320,17.98583598,196.51,196.46,0.03]
[1755184166526,4.23523947,196.56,196.49,17.98583598]
[1755184166734,4.23523947,196.56,196.47,0.71]
[1755184166735,17.98583598,196.56,196.47,0.71]
[1755184166893,3.383649,196.55,196.49,17.98583598]
[1755184167438,17.98583598,196.61,196.54,17.98583598]
[1755184167628,3.38263922,196.6,196.55,18.69583598]
[1755184167924,6.03685752,196.66,196.59,17.98583598]
[1755184168106,17.98583598,196.68,196.62,17.98583598]
[1755184168509,26.7,196.71,196.63,17.98583598]
[1755184168740,3.38143608,196.7,196.66,17.98583598]
[1755184168902,17.98583598,196.73,196.67,17.98583598]
[1755184169093,26.7,196.74,196.66,18.69583598]
[1755184169297,3.38043898,196.73,196.67,23.07049556]
[1755184169600,3.38043898,196.73,196.66,0.71]
[1755184169601,17.98583598,196.73,196.66,0.71]
[1755184169791,17.98583598,196.71,196.66,5.08491608]
[1755184169995,17.98583598,196.68,196.62,63.98176102]
[1755184170219,26.7,196.7,196.61,17.98583598]
[1755184170396,2.65294809,196.75,196.68,17.98583598]
[1755184170596,17.98583598,196.69,196.62,40.91]
[1755184170804,17.98583598,196.67,196.62,40.2]
[1755184171005,17.98583598,196.66,196.62,40.2]
[1755184171324,26.0,196.7,196.58,5.11678895]
[1755184171325,17.98583598,196.63,196.58,40.23]
[1755184171525,17.98583598,196.62,196.58,0.03]
[1755184171733,17.98583598,196.62,196.58,0.74]
[1755184172100,17.98583598,196.62,196.58,5.82698655]
[1755184172415,0.69,196.69,196.59,18.69583598]
[1755184172603,43.98583598,196.67,196.59,0.71]
[1755184172922,17.98583598,196.7,196.64,17.98583598]
[1755184173115,0.06,196.78,196.66,15.10621557]
[1755184173313,0.06,196.78,196.73,17.98583598]
[1755184173519,0.06,196.78,196.74,17.98583598]
[1755184173707,0.06,196.78,196.7,40.14]
[1755184173708,17.98583598,196.75,196.7,40.14]
[1755184174108,0.06,196.78,196.73,17.98583598]
[1755184174330,0.06,196.78,196.73,0.71]
[1755184174498,18.04583598,196.78,196.72,17.98583598]
[1755184174824,26.0,196.77,196.72,17.98583598]
[1755184175027,26.0,196.77,196.72,18.69583598]
[1755184175334,17.98583598,196.76,196.71,40.1]
[1755184175535,17.98583598,196.74,196.68,18.69583598]
[1755184175738,17.98583598,196.73,196.67,58.04583598]
[1755184176030,17.98583598,196.73,196.67,63.13045214]
[1755184176197,17.98583598,196.73,196.67,58.04583598]
[1755184176393,17.98583598,196.68,196.64,0.03]
[1755184176604,17.98583598,196.65,196.64,0.03]
[1755184176826,26.0,196.62,196.58,0.03]
[1755184177014,15.10621557,196.69,196.58,18.01583598]
[1755184177223,17.98583598,196.64,196.58,18.01583598]
[1755184178225,17.98583598,196.63,196.58,0.03]
[1755184178525,17.98583598,196.62,196.58,0.03]
[1755184178929,0.69,196.64,196.58,0.03]
[1755184179134,17.98583598,196.63,196.58,0.03]
[1755184179301,31.08526405,196.65,196.58,0.03]
[1755184179302,26.0,196.65,196.59,0.71]
[1755184179508,26.0,196.64,196.61,17.98583598]
[1755184179716,26.0,196.64,196.6,17.98583598]
[1755184179920,17.98583598,196.65,196.58,0.74]
[1755184180123,17.98583598,196.63,196.58,0.03]
[1755184180327,17.98583598,196.62,196.58,0.03]
[1755184180634,0.69,196.61,196.58,0.03]
[1755184180946,17.98583598,196.61,196.58,0.03]
[1755184181227,17.98583598,196.59,196.58,0.03]
[1755184181433,38.86878027,196.59,196.58,0.03]
[1755184181633,23.7625647,196.59,196.58,0.03]
[1755184182240,23.0725647,196.59,196.58,0.03]
[1755184182406,0.69,196.61,196.58,0.03]
[1755184182407,17.98583598,196.6,196.58,0.03]
[1755184182611,43.98583598,196.61,196.58,0.03]
[1755184183020,17.98583598,196.6,196.58,0.03]